fUST/lending_fUST_20240630
["ID","MTS","AMOUNT","RATE_DAILY","PERIOD"]
[330709803,1719721840436,-500.0,0.00016438,2]
[330709804,1719721840446,-500.0,0.00016438,2]
[330709805,1719721840456,-500.0,0.00016438,2]
[330709806,1719721840467,-500.0,0.00016438,2]
[330709807,1719721840478,-500.0,0.00016438,2]
[330709808,1719721840489,-500.0,0.00016438,2]
[330709809,1719721840500,-500.0,0.00016438,2]
[330709810,1719721840511,-218.19903347,0.00016438,2]
[330709811,1719721840520,-500.0,0.00016438,2]
[330709812,1719721840531,-500.0,0.00016438,2]
[330709813,1719721840541,-500.0,0.00016438,2]
[330709814,1719721840551,-500.0,0.00016438,2]
[330709815,1719721840561,-289.60180545,0.00016438,2]
[330709816,1719721840572,-500.0,0.00016438,2]
[330709817,1719721840583,-500.0,0.00016438,2]
[330709818,1719721840594,-500.0,0.00016438,2]
[330709819,1719721840604,-3739.56,0.00016438,2]
[330709820,1719721840614,-605.53090476,0.00016438,2]
[330709821,1719721840624,-1512.02,0.00016438,2]
[330709822,1719721840634,-500.0,0.00016438,2]
[330709823,1719721840645,-793.71,0.00016438,2]
[330709824,1719721840655,-502.3572383,0.00016438,2]
[330709825,1719721840665,-500.0,0.00016438,2]
[330709826,1719721840675,-500.0,0.00016438,2]
[330709827,1719721840686,-508.10731312,0.00016438,2]
[330709828,1719721840696,-500.0,0.00016438,2]
[330709829,1719721840706,-555.92,0.00016438,2]
[330709830,1719721840717,-500.0,0.00016438,2]
[330709831,1719721840727,-744.13,0.00016438,2]
[330709832,1719721840737,-711.91,0.00016438,2]
[330709833,1719721840748,-1512.82,0.00016438,2]
[330709834,1719721840760,-500.0,0.00016438,2]
[330709835,1719721840770,-645.19,0.00016438,2]
[330709836,1719721840780,-500.0,0.00016438,2]
[330709837,1719721840790,-504.76597626,0.00016438,2]
[330709838,1719721840800,-500.0,0.00016438,2]
[330709839,1719721840810,-500.0,0.00016438,2]
[330709840,1719721840819,-500.0,0.00016438,2]
[330709841,1719721840829,-500.0,0.00016438,2]
[330709842,1719721840838,-500.0,0.00016438,2]
[330709843,1719721840848,-188.09167626,0.00016438,2]
[330709844,1719721840857,-500.74695994,0.00016438,2]
[330709845,1719721840867,-1256.43,0.00016438,2]
[330709846,1719721840878,-623.77,0.00016438,2]
[330709847,1719721840887,-508.18186603,0.00016438,2]
[330709848,1719721840896,-500.0,0.00016438,2]
[330709849,1719721840906,-500.0,0.00016438,2]
[330709850,1719721840915,-500.0,0.00016438,2]
[330709851,1719721840924,-506.07113532,0.00016438,2]
[330709852,1719721840934,-843.42,0.00016438,2]
[330709853,1719721840943,-500.0,0.00016438,2]
[330709854,1719721840952,-500.0,0.00016438,2]
[330709855,1719721840964,-19041.74,0.00016438,2]
[330709856,1719721840973,-651.93,0.00016438,2]
[330709857,1719721840983,-500.0,0.00016438,2]
[330709858,1719721840993,-500.0,0.00016438,2]
[330709859,1719721841003,-697.61,0.00016438,2]
[330709860,1719721841012,-560.18,0.00016438,2]
[330709861,1719721841022,-501.72680499,0.00016438,2]
[330709862,1719721841031,-500.0,0.00016438,2]
[330709863,1719721841041,-500.0,0.00016438,2]
[330709864,1719721841051,-501.9053898,0.00016438,2]
[330709865,1719721841060,-500.0,0.00016438,2]
[330709866,1719721841071,-518.6968974,0.00016438,2]
[330709867,1719721841081,-546.67653894,0.00016438,2]
[330709868,1719721841090,-3242.34,0.00016438,2]
[330709869,1719721841100,-500.0,0.00016438,2]
[330709870,1719721841109,-501.00203503,0.00016438,2]
[330709871,1719721841120,-500.0,0.00016438,2]
[330709872,1719721841129,-500.0,0.00016438,2]
[330709873,1719721841138,-3921.99,0.00016438,2]
[330709874,1719721841147,-502.60302224,0.00016438,2]
[330709875,1719721841156,-500.0,0.00016438,2]
[330709876,1719721841166,-500.0,0.00016438,2]
[330709877,1719721841176,-515.09824929,0.00016438,2]
[330709878,1719721841185,-500.0,0.00016438,2]
[330709879,1719721841194,-513.57,0.00016438,2]
[330709880,1719721841203,-507.55763966,0.00016438,2]
[330709881,1719721841214,-500.0,0.00016438,2]
[330709882,1719721841223,-356.11122265,0.00016438,2]
[330709883,1719721841232,-777.32,0.00016438,2]
[330709884,1719721841242,-1034.21,0.00016438,2]
[330709885,1719721841251,-1754.19,0.00016438,2]
[330709886,1719721841260,-728.09,0.00016438,2]
[330709887,1719721841269,-500.15,0.00016438,2]
[330709888,1719721841279,-500.0,0.00016438,2]
[330709889,1719721841288,-500.0,0.00016438,2]
[330709890,1719721841297,-1488.78,0.00016438,2]
[330709891,1719721841307,-500.0,0.00016438,2]
[330709892,1719721841321,-501.5096367,0.00016438,2]
[330709893,1719721841330,-683.48,0.00016438,2]
[330709894,1719721841339,-751.39,0.00016438,2]
[330709895,1719721841349,-635.80447038,0.00016438,2]
[330709896,1719721841358,-963.57,0.00016438,2]
[330709897,1719721841367,-838.23,0.00016438,2]
[330709898,1719721841376,-500.0,0.00016438,2]
[330709899,1719721841385,-500.0,0.00016438,2]
[330709900,1719721841396,-2049.93,0.00016438,2]
[330709901,1719721841406,-852.01,0.00016438,2]
[330709902,1719721841415,-504.43843048,0.00016438,2]
[330709903,1719721841426,-500.0,0.00016438,2]
[330709904,1719721841436,-500.0,0.00016438,2]
[330709905,1719721841445,-3478.08,0.00016438,2]
[330709906,1719721841455,-500.0,0.00016438,2]
[330709907,1719721841465,-500.0,0.00016438,2]
[330709908,1719721841474,-500.0,0.00016438,2]
[330709909,1719721841483,-500.0,0.00016438,2]
[330709910,1719721841493,-500.0,0.00016438,2]
[330709911,1719721841504,-500.0,0.00016438,2]
[330709912,1719721841513,-647.25,0.00016438,2]
[330709913,1719721841522,-503.33884486,0.00016438,2]
[330709914,1719721841531,-2964.06,0.00016438,2]
[330709915,1719721841540,-503.80395665,0.00016438,2]
[330709916,1719721841551,-453.7514208,0.00016438,2]
[330709917,1719721841560,-500.0,0.00016438,2]
[330709918,1719721841568,-541.28,0.00016438,2]
[330709919,1719721841578,-500.0,0.00016438,2]
[330709920,1719721841587,-523.21322067,0.00016438,2]
[330709921,1719721841596,-504.25480397,0.00016438,2]
[330709922,1719721841605,-500.0,0.00016438,2]
[330709923,1719721841615,-1939.98,0.00016438,2]
[330709924,1719721841624,-500.0,0.00016438,2]
[330709925,1719721841633,-500.0,0.00016438,2]
[330709926,1719721841643,-627.36491239,0.00016438,2]
[330709927,1719721841652,-500.0,0.00016438,2]
[330709928,1719721841662,-500.0,0.00016438,2]
[330709929,1719721841671,-500.0,0.00016438,2]
[330709930,1719721841680,-500.0,0.00016438,2]
[330709931,1719721841691,-1122.76,0.00016438,2]
[330709932,1719721841700,-600.4,0.00016438,2]
[330709933,1719721841710,-500.0,0.00016438,2]
[330709934,1719721841720,-500.0,0.00016438,2]
[330709935,1719721841729,-625.34,0.00016438,2]
[330709936,1719721841738,-500.0,0.00016438,2]
[330709937,1719721841747,-1047.47,0.00016438,2]
[330709938,1719721841758,-516.65,0.00016438,2]
[330709939,1719721841767,-909.73,0.00016438,2]
[330709940,1719721841869,-500.0,0.00016438,2]
[330709941,1719721841879,-3168.39,0.00016438,2]
[330709942,1719721841887,-500.0,0.00016438,2]
[330709943,1719721841897,-811.63,0.00016438,2]
[330709944,1719721841906,-1318.82,0.00016438,2]
[330709945,1719721841915,-1993.28,0.00016438,2]
[330709946,1719721841924,-508.89228459,0.00016438,2]
[330709947,1719721841933,-500.0,0.00016438,2]
[330709948,1719721841942,-500.0,0.00016438,2]
[330709949,1719721841951,-370.21868496,0.00016438,2]
[330709950,1719721841962,-500.0,0.00016438,2]
[330709951,1719721841972,-500.0,0.00016438,2]
[330709952,1719721841981,-1103.87,0.00016438,2]
[330709953,1719721841990,-500.0,0.00016438,2]
[330709954,1719721841999,-1938.97,0.00016438,2]
[330709955,1719721842008,-500.0,0.00016438,2]
[330709956,1719721842016,-500.0,0.00016438,2]
[330709957,1719721842025,-525.72491005,0.00016438,2]
[330709958,1719721842034,-500.0,0.00016438,2]
[330709959,1719721842043,-949.62,0.00016438,2]
[330709960,1719721842052,-500.0,0.00016438,2]
[330709961,1719721842061,-500.0,0.00016438,2]
[330709962,1719721842071,-550.02769491,0.00016438,2]
[330709963,1719721842080,-11596.27,0.00016438,2]
[330709964,1719721842090,-500.0,0.00016438,2]
[330709965,1719721842100,-500.0,0.00016438,2]
[330709966,1719721842110,-1656.37,0.00016438,2]
[330709967,1719721842119,-500.0,0.00016438,2]
[330709968,1719721842128,-208.584817,0.00016438,2]
[330709969,1719721842137,-3815.59,0.00016438,2]
[330709970,1719721842147,-500.0,0.00016438,2]
[330709971,1719721842156,-600.27,0.00016438,2]
[330709972,1719721842166,-500.0,0.00016438,2]
[330709973,1719721842175,-517.27090328,0.00016438,2]
[330709974,1719721842186,-151.0,0.00016438,2]
[330709975,1719721842195,-151.0,0.00016438,2]
[330709976,1719721842204,-699.59,0.00016438,2]
[330709977,1719721842215,-500.0,0.00016438,2]
[330709978,1719721842224,-500.0,0.00016438,2]
[330709979,1719721842233,-501.53968215,0.00016438,2]
[330709980,1719721842245,-506.82,0.00016438,2]
[330709981,1719721842256,-501.82408422,0.00016438,2]
[330709982,1719721842265,-506.29147008,0.00016438,2]
[330709983,1719721842275,-508.39491225,0.00016438,2]
[330709984,1719721842284,-503.08253813,0.00016438,2]
[330709985,1719721842294,-500.0,0.00016438,2]
[330709986,1719721842304,-1075.04,0.00016438,2]
[330709987,1719721842315,-631.25,0.00016438,2]
[330709988,1719721842324,-500.0,0.00016438,2]
[330709989,1719721842334,-504.21438087,0.00016438,2]
[330709990,1719721842344,-500.0,0.00016438,2]
[330709991,1719721842353,-500.0,0.00016438,2]
[330709992,1719721842363,-501.16079115,0.00016438,2]
[330709993,1719721842372,-500.0,0.00016438,2]
[330709994,1719721842382,-1567.52,0.00016438,2]
[330709995,1719721842392,-746.24,0.00016438,2]
[330709996,1719721842401,-500.0,0.00016438,2]
[330709997,1719721842412,-500.0,0.00016438,2]
[330709998,1719721842422,-500.0,0.00016438,2]
[330709999,1719721842431,-500.0,0.00016438,2]
[330710000,1719721842441,-1895.02,0.00016438,2]
[330710001,1719721842451,-500.0,0.00016438,2]
[330710002,1719721842461,-303.37565027,0.00016438,2]
[330710003,1719721842472,-21739.88,0.00016438,2]
[330710004,1719721842481,-2086.46,0.00016438,2]
[330710005,1719721842490,-598.33,0.00016438,2]
[330710006,1719721842499,-600.36,0.00016438,2]
[330710007,1719721842508,-500.0,0.00016438,2]
[330710008,1719721842517,-3914.59,0.00016438,2]
[330710009,1719721842528,-521.84,0.00016438,2]
[330710010,1719721842538,-1242.44,0.00016438,2]
[330710011,1719721842548,-500.0,0.00016438,2]
[330710012,1719721842557,-510.23074069,0.00016438,2]
[330710013,1719721842567,-500.0,0.00016438,2]
[330710014,1719721842577,-500.0,0.00016438,2]
[330710015,1719721842587,-502.86841912,0.00016438,2]
[330710016,1719721842596,-284.42713309,0.00016438,2]
[330710017,1719721842606,-18335.36,0.00016438,2]
[330710018,1719721842616,-500.0,0.00016438,2]
[330710019,1719721842627,-500.0,0.00016438,2]
[330710020,1719721842637,-543.63,0.00016438,2]
[330710022,1719721842646,-538.00787098,0.00016438,2]
[330710024,1719721842655,-500.0,0.00016438,2]
[330710025,1719721842665,-832.52,0.00016438,2]
[330710026,1719721842674,-500.0,0.00016438,2]
[330710027,1719721842684,-8801.3,0.00016438,2]
[330710028,1719721842693,-610.56,0.00016438,2]
[330710029,1719721842703,-1113.83,0.00016438,2]
[330710030,1719721842713,-503.58440114,0.00016438,2]
[330710031,1719721842723,-500.0,0.00016438,2]
[330710032,1719721842733,-500.0,0.00016438,2]
[330710034,1719721842743,-2440.34,0.00016438,2]
[330710035,1719721842755,-500.0,0.00016438,2]
[330710036,1719721842764,-501.08655905,0.00016438,2]
[330710038,1719721842774,-500.0,0.00016438,2]
[330710039,1719721842784,-8820.53,0.00016438,2]
[330710040,1719721842794,-500.0,0.00016438,2]
[330710041,1719721842803,-572.42,0.00016438,2]
[330710042,1719721842813,-500.0,0.00016438,2]
[330710043,1719721842822,-501.97196758,0.00016438,2]
[330710044,1719721842832,-1371.68,0.00016438,2]
[330710045,1719721842841,-500.0,0.00016438,2]
[330710046,1719721842851,-508.94061713,0.00016438,2]
[330710047,1719721842860,-2593.85,0.00016438,2]
[330710048,1719721842870,-4503.8,0.00016438,2]
[330710049,1719721842879,-1094.29,0.00016438,2]
[330710051,1719721842889,-502.72826924,0.00016438,2]
[330710053,1719721842899,-766.92,0.00016438,2]
[330710055,1719721842908,-500.0,0.00016438,2]
[330710056,1719721842917,-2504.72,0.00016438,2]
[330710057,1719721842926,-1224.86,0.00016438,2]
[330710058,1719721842936,-870.95,0.00016438,2]
[330710060,1719721842945,-500.0,0.00016438,2]
[330710062,1719721842955,-7492.56,0.00016438,2]
[330710064,1719721842966,-1068.11,0.00016438,2]
[330710066,1719721842975,-500.0,0.00016438,2]
[330710067,1719721842985,-505.0003678,0.00016438,2]
[330710069,1719721842994,-771.69,0.00016438,2]
[330710071,1719721843004,-500.0,0.00016438,2]
[330710074,1719721843013,-500.0,0.00016438,2]
[330710075,1719721843023,-500.0,0.00016438,2]
[330710077,1719721843032,-500.0,0.00016438,2]
[330710079,1719721843041,-1226.32,0.00016438,2]
[330710082,1719721843051,-331.73340789,0.00016438,2]
[330710174,1719721843883,-171.96173236,0.00016336,2]
[330710176,1719721843895,-763.1579488,0.00016336,2]
[330710178,1719721843905,-168.26659211,0.00016438,2]
[330710180,1719721843914,-500.0,0.00016438,2]
[330710183,1719721843924,-387.67568367,0.00016438,2]
[330710185,1719721843934,-500.0,0.00016438,2]
[330710187,1719721843943,-3223.14,0.00016438,2]
[330710189,1719721843952,-508.45257702,0.00016438,2]
[330710191,1719721843961,-15946.55,0.00016438,2]
[330710193,1719721843971,-500.0,0.00016438,2]
[330710195,1719721843980,-522.44,0.00016438,2]
[330710197,1719721843989,-500.0,0.00016438,2]
[330710199,1719721843999,-500.0,0.00016438,2]
[330710200,1719721844008,-605.84,0.00016438,2]
[330710202,1719721844018,-506.75248737,0.00016438,2]
[330710205,1719721844027,-565.48491466,0.00016438,2]
[330710206,1719721844037,-500.0,0.00016438,2]
[330710209,1719721844046,-500.0,0.00016438,2]
[330710210,1719721844055,-509.34,0.00016438,2]
[330710212,1719721844064,-2163.38,0.00016438,2]
[330710214,1719721844074,-11781.04,0.00016438,2]
[330710216,1719721844083,-1946.25,0.00016438,2]
[330710218,1719721844092,-500.0,0.00016438,2]
[330710220,1719721844101,-500.0,0.00016438,2]
[330710222,1719721844110,-1445.98,0.00016438,2]
[330710224,1719721844119,-576.24,0.00016438,2]
[330710226,1719721844128,-500.0,0.00016438,2]
[330710228,1719721844138,-500.0,0.00016438,2]
[330710230,1719721844147,-5376.83,0.00016438,2]
[330710232,1719721844156,-510.37990973,0.00016438,2]
[330710234,1719721844166,-501.58207022,0.00016438,2]
[330710236,1719721844175,-1396.74,0.00016438,2]
[330710239,1719721844184,-500.0,0.00016438,2]
[330710241,1719721844194,-2708.34,0.00016438,2]
[330710243,1719721844203,-1223.39,0.00016438,2]
[330710244,1719721844213,-500.0,0.00016438,2]
[330710247,1719721844222,-638.08,0.00016438,2]
[330710248,1719721844231,-500.0,0.00016438,2]
[330710250,1719721844240,-500.0,0.00016438,2]
[330710252,1719721844251,-1591.66,0.00016438,2]
[330710254,1719721844260,-601.14,0.00016438,2]
[330710256,1719721844269,-500.0,0.00016438,2]
[330710258,1719721844279,-500.0,0.00016438,2]
[330710260,1719721844287,-1840.67,0.00016438,2]
[330710262,1719721844297,-500.0,0.00016438,2]
[330710265,1719721844307,-500.0,0.00016438,2]
[330710267,1719721844322,-500.0,0.00016438,2]
[330710268,1719721844331,-1035.43,0.00016438,2]
[330710271,1719721844341,-573.40636028,0.00016438,2]
[330710272,1719721844350,-290.16226717,0.00016438,2]
[330710274,1719721844360,-1440.12,0.00016438,2]
[330710276,1719721844370,-2123.63,0.00016438,2]
[330710278,1719721844379,-4704.0,0.00016438,2]
[330710281,1719721844388,-4704.0,0.00016438,2]
[330710283,1719721844398,-4704.0,0.00016438,2]
[330710285,1719721844408,-4704.0,0.00016438,2]
[330710287,1719721844418,-500.0,0.00016438,2]
[330710289,1719721844427,-48140.05,0.00016438,2]
[330710291,1719721844437,-506.23553151,0.00016438,2]
[330710293,1719721844446,-1422.46,0.00016438,2]
[330710295,1719721844456,-1809.59,0.00016438,2]
[330710296,1719721844466,-4704.0,0.00016438,2]
[330710299,1719721844475,-4704.0,0.00016438,2]
[330710300,1719721844484,-4704.0,0.00016438,2]
[330710302,1719721844493,-500.0,0.00016438,2]
[330710304,1719721844502,-500.0,0.00016438,2]
[330710306,1719721844511,-4704.0,0.00016438,2]
[330710308,1719721844520,-4704.0,0.00016438,2]
[330710310,1719721844529,-4704.0,0.00016438,2]
[330710312,1719721844538,-500.0,0.00016438,2]
[330710314,1719721844547,-4704.0,0.00016438,2]
[330710316,1719721844556,-4704.0,0.00016438,2]
[330710318,1719721844565,-4704.0,0.00016438,2]
[330710320,1719721844575,-5673.86,0.00016438,2]
[330710322,1719721844584,-500.0,0.00016438,2]
[330710324,1719721844593,-500.0,0.00016438,2]
[330710326,1719721844602,-505.11533947,0.00016438,2]
[330710337,1719721844692,-537.90911443,0.00016438,2]
[330710340,1719721844702,-12451.97,0.00016438,2]
[330710342,1719721844711,-500.0,0.00016438,2]
[330710343,1719721844721,-1437.5,0.00016438,2]
[330710345,1719721844731,-500.0,0.00016438,2]
[330710348,1719721844740,-500.0,0.00016438,2]
[330710349,1719721844749,-500.0,0.00016438,2]
[330710351,1719721844760,-2509.51,0.00016438,2]
[330710353,1719721844770,-789.9,0.00016438,2]
[330710356,1719721844779,-9893.96,0.00016438,2]
[330710358,1719721844789,-501.15363113,0.00016438,2]
[330710359,1719721844800,-504.87921183,0.00016438,2]
[330710361,1719721844809,-506.15870229,0.00016438,2]
[330710363,1719721844819,-864.35,0.00016438,2]
[330710365,1719721844828,-609.03,0.00016438,2]
[330710368,1719721844837,-926.51,0.00016438,2]
[330710370,1719721844847,-928.82,0.00016438,2]
[330710372,1719721844856,-506.88,0.00016438,2]
[330710373,1719721844865,-500.0,0.00016438,2]
[330710376,1719721844875,-3583.99,0.00016438,2]
[330710378,1719721844884,-500.0,0.00016438,2]
[330710379,1719721844893,-500.0,0.00016438,2]
[330710381,1719721844902,-2035.49,0.00016438,2]
[330710383,1719721844911,-1500.42,0.00016438,2]
[330710386,1719721844921,-2852.33,0.00016438,2]
[330710387,1719721844931,-500.0,0.00016438,2]
[330710390,1719721844940,-500.0,0.00016438,2]
[330710392,1719721844950,-153.723461,0.000165,2]
[330710394,1719721844959,-153.0,0.000165,2]
[330710396,1719721844970,-153.0,0.000165,2]
[330710398,1719721844979,-153.0,0.000165,2]
[330710400,1719721844988,-153.0,0.000165,2]
[330710402,1719721844997,-153.0,0.000165,2]
[330710404,1719721845006,-153.0,0.000165,2]
[330710406,1719721845016,-153.0,0.000165,2]
[330710408,1719721845025,-153.0,0.000165,2]
[330710410,1719721845034,-153.0,0.000165,2]
[330710412,1719721845043,-153.0,0.000165,2]
[330710414,1719721845052,-153.0,0.000165,2]
[330710416,1719721845061,-153.0,0.000165,2]
[330710418,1719721845070,-153.0,0.000165,2]
[330710420,1719721845079,-206.0005558,0.000165,2]
[330710422,1719721845089,-4704.0,0.00016524,2]
[330710423,1719721845098,-600.0,0.00016525,2]
[330710425,1719721845107,-600.0,0.00016525,2]
[330710427,1719721845116,-600.0,0.00016525,2]
[330710429,1719721845126,-600.0,0.00016525,2]
[330710431,1719721845135,-600.0,0.00016525,2]
[330710434,1719721845144,-600.0,0.00016525,2]
[330710436,1719721845153,-600.0,0.00016525,2]
[330710438,1719721845163,-600.0,0.00016525,2]
[330710439,1719721845172,-600.0,0.00016525,2]
[330710442,1719721845182,-600.0,0.00016525,2]
[330710443,1719721845191,-600.0,0.00016525,2]
[330710446,1719721845201,-600.0,0.00016525,2]
[330710447,1719721845211,-600.0,0.00016525,2]
[330710449,1719721845221,-600.0,0.00016525,2]
[330710452,1719721845230,-153.0,0.00016525,2]
[330710454,1719721845240,-601.0,0.00016525,2]
[330710456,1719721845249,-601.0,0.00016525,2]
[330710457,1719721845258,-601.0,0.00016525,2]
[330710459,1719721845267,-601.0,0.00016525,2]
[330710461,1719721845277,-601.0,0.00016525,2]
[330710463,1719721845286,-601.0,0.00016525,2]
[330710465,1719721845295,-601.0,0.00016525,2]
[330710468,1719721845305,-601.0,0.00016525,2]
[330710470,1719721845318,-601.0,0.00016525,2]
[330710472,1719721845328,-601.0,0.00016525,2]
[330710474,1719721845337,-601.0,0.00016525,2]
[330710476,1719721845347,-601.0,0.00016525,2]
[330710478,1719721845357,-601.0,0.00016525,2]
[330710480,1719721845366,-601.0,0.00016525,2]
[330710482,1719721845375,-153.0,0.00016525,2]
[330710484,1719721845384,-153.0,0.00016525,2]
[330710486,1719721845396,-601.0,0.00016526,2]
[330710488,1719721845405,-601.0,0.00016526,2]
[330710490,1719721845414,-601.0,0.00016526,2]
[330710492,1719721845423,-601.0,0.00016526,2]
[330710494,1719721845432,-601.0,0.00016526,2]
[330710496,1719721845441,-601.0,0.00016526,2]
[330710498,1719721845450,-601.0,0.00016526,2]
[330710500,1719721845459,-601.0,0.00016526,2]
[330710502,1719721845469,-601.0,0.00016526,2]
[330710504,1719721845478,-601.0,0.00016526,2]
[330710506,1719721845488,-601.0,0.00016526,2]
[330710508,1719721845500,-601.0,0.00016526,2]
[330710510,1719721845509,-601.0,0.00016526,2]
[330710512,1719721845519,-601.0,0.00016526,2]
[330710514,1719721845528,-601.0,0.00016526,2]
[330710516,1719721845537,-601.0,0.00016526,2]
[330710518,1719721845546,-601.0,0.00016526,2]
[330710520,1719721845555,-601.0,0.00016526,2]
[330710522,1719721845564,-601.0,0.00016526,2]
[330710524,1719721845573,-601.0,0.00016526,2]
[330710526,1719721845583,-601.0,0.00016526,2]
[330710528,1719721845592,-601.0,0.00016526,2]
[330710530,1719721845601,-601.0,0.00016526,2]
[330710532,1719721845611,-601.0,0.00016526,2]
[330710534,1719721845620,-601.0,0.00016526,2]
[330710536,1719721845629,-601.0,0.00016526,2]
[330710538,1719721845638,-601.0,0.00016526,2]
[330710540,1719721845647,-601.0,0.00016526,2]
[330710543,1719721845656,-601.0,0.00016526,2]
[330710546,1719721845665,-601.0,0.00016526,2]
[330710548,1719721845674,-601.0,0.00016526,2]
[330710550,1719721845683,-601.0,0.00016526,2]
[330710552,1719721845692,-601.0,0.00016526,2]
[330710553,1719721845701,-601.0,0.00016526,2]
[330710555,1719721845710,-601.0,0.00016526,2]
[330710557,1719721845721,-601.0,0.00016526,2]
[330710559,1719721845731,-601.0,0.00016526,2]
[330710561,1719721845740,-601.0,0.00016526,2]
[330710563,1719721845750,-601.0,0.00016526,2]
[330710565,1719721845760,-601.0,0.00016526,2]
[330710567,1719721845769,-601.0,0.00016526,2]
[330710569,1719721845779,-153.0,0.00016526,2]
[330710571,1719721845788,-601.0,0.00016526,2]
[330710573,1719721845797,-601.0,0.00016526,2]
[330710575,1719721845806,-601.0,0.00016526,2]
[330710577,1719721845815,-601.0,0.00016526,2]
[330710579,1719721845824,-601.0,0.00016526,2]
[330710581,1719721845833,-601.0,0.00016526,2]
[330710583,1719721845842,-601.0,0.00016526,2]
[330710585,1719721845850,-601.0,0.00016526,2]
[330710587,1719721845860,-601.0,0.00016526,2]
[330710590,1719721845869,-601.0,0.00016526,2]
[330710604,1719721845879,-601.0,0.00016526,2]
[330710606,1719721845963,-601.0,0.00016526,2]
[330710608,1719721845974,-601.0,0.00016526,2]
[330710610,1719721845983,-601.0,0.00016526,2]
[330710612,1719721845992,-153.0,0.00016526,2]
[330710614,1719721846001,-4704.0,0.00016536,2]
[330710616,1719721846010,-156.774861,0.00016549,2]
[330710619,1719721846021,-153.0,0.000166,2]
[330710621,1719721846031,-153.0,0.000166,2]
[330710623,1719721846040,-153.0,0.000166,2]
[330710625,1719721846049,-153.0,0.000166,2]
[330710627,1719721846058,-1124.9,0.00016679,2]
[330710629,1719721846068,-324.4,0.00016679,2]
[330710631,1719721846078,-777.012,0.00016697,2]
[330710633,1719721846087,-231.309,0.00016697,2]
[330710635,1719721846096,-153.0,0.000167,2]
[330710637,1719721846105,-153.0,0.000167,2]
[330710639,1719721846114,-153.0,0.000167,2]
[330710641,1719721846123,-153.0,0.000167,2]
[330710643,1719721846133,-153.0,0.000167,2]
[330710645,1719721846142,-153.0,0.000167,2]
[330710647,1719721846151,-153.0,0.000167,2]
[330710649,1719721846160,-306.0,0.000167,2]
[330710651,1719721846170,-306.0,0.000167,2]
[330710653,1719721846179,-153.0,0.000167,2]
[330710655,1719721846188,-153.0,0.00016712,2]
[330710657,1719721846197,-206.0005558,0.00016712,2]
[330710659,1719721846206,-153.0,0.00016712,2]
[330710661,1719721846216,-206.0005558,0.00016712,2]
[330710663,1719721846226,-206.0005558,0.00016712,2]
[330710665,1719721846235,-153.0,0.00016712,2]
[330710667,1719721846244,-206.0005558,0.00016712,2]
[330710669,1719721846253,-206.0005558,0.00016712,2]
[330710671,1719721846263,-206.0005558,0.00016712,2]
[330710673,1719721846272,-206.0005558,0.00016712,2]
[330710675,1719721846281,-153.0,0.00016712,2]